[Event "Blixt-SM 2021"]
[Site "Elite Hotel Marina Plaza, Kungstorget 6, Helsingborg, Sweden"]
[Date "2021.11.14"]
[Round "3.2"]
[White "Troedsson, Anton"]
[Black "Olsson, Linus"]
[Result "0-1"]
[TimeControl "3 minutes + 2 seconds per move."]
[BlackTitle "FM"]
[WhiteFideId "1746006"]
[BlackFideId "1706098"]
[WhiteElo "2104"]
[BlackElo "2204"]

1. Nf3 {[%clk 00:03:03]} {[%emt 00:03:04]} Nf6 {[%clk 00:03:02]} {[%emt
00:00:02]} 2. b3 {[%clk 00:03:05]} g6 {[%clk 00:03:02]} {[%emt 00:00:02]} 3.
Bb2 {[%clk 00:03:06]} Bg7 {[%clk 00:03:03]} 4. g3 {[%clk 00:03:07]} O-O {[%clk
00:03:03]} {[%emt 00:00:02]} 5. Bg2 {[%clk 00:03:08]} d6 {[%clk 00:03:04]}
{[%emt 00:00:03]} 6. d4 {[%clk 00:03:09]} {[%emt 00:00:01]} Bf5 {[%clk
00:02:56]} {[%emt 00:00:09]} 7. c4 {[%clk 00:03:06]} {[%emt 00:00:06]} Qc8
{[%clk 00:02:56]} {[%emt 00:00:02]} 8. O-O {[%clk 00:03:03]} {[%emt 00:00:05]}
Bh3 {[%clk 00:02:55]} {[%emt 00:00:03]} 9. Nc3 {[%clk 00:03:03]} {[%emt
00:00:02]} Bxg2 {[%clk 00:02:46]} {[%emt 00:00:11]} 10. Kxg2 {[%clk 00:03:04]}
{[%emt 00:00:02]} Nbd7 {[%clk 00:02:36]} {[%emt 00:00:12]} 11. e4 {[%clk
00:02:57]} {[%emt 00:00:09]} c5 {[%clk 00:02:23]} {[%emt 00:00:15]} 12. Re1
{[%clk 00:02:48]} {[%emt 00:00:11]} cxd4 {[%clk 00:02:17]} {[%emt 00:00:08]} 13.
Nxd4 {[%clk 00:02:46]} {[%emt 00:00:04]} Nc5 {[%clk 00:02:17]} {[%emt
00:00:03]} 14. Nd5 {[%clk 00:02:34]} {[%emt 00:00:13]} Re8 {[%clk 00:02:07]}
{[%emt 00:00:12]} 15. Qc2 {[%clk 00:02:26]} {[%emt 00:00:10]} h5 {[%clk
00:02:00]} {[%emt 00:00:10]} 16. Nxf6+ {[%clk 00:02:19]} {[%emt 00:00:08]} Bxf6
{[%clk 00:02:00]} {[%emt 00:00:02]} 17. h4 {[%clk 00:02:14]} {[%emt 00:00:08]}
a5 {[%clk 00:01:17]} {[%emt 00:00:45]} 18. Rad1 {[%clk 00:02:12]} {[%emt
00:00:03]} a4 {[%clk 00:01:17]} {[%emt 00:00:03]} 19. b4 {[%clk 00:02:12]}
{[%emt 00:00:02]} a3 {[%clk 00:01:14]} {[%emt 00:00:04]} 20. Ba1 {[%clk
00:02:03]} {[%emt 00:00:11]} Nd7 {[%clk 00:01:14]} {[%emt 00:00:02]} 21. Qb3
{[%clk 00:01:55]} {[%emt 00:00:09]} Ne5 {[%clk 00:01:09]} {[%emt 00:00:07]} 22.
Rc1 {[%clk 00:01:50]} {[%emt 00:00:06]} Qd7 {[%clk 00:00:38]} {[%emt 00:00:33]}
23. Red1 {[%clk 00:01:43]} {[%emt 00:00:09]} Rec8 {[%clk 00:00:36]} {[%emt
00:00:05]} 24. Rc2 {[%clk 00:01:23]} {[%emt 00:00:21]} Bxh4 {[%clk 00:00:33]}
{[%emt 00:00:05]} 25. f4 {[%clk 00:01:05]} {[%emt 00:00:20]} Nc6 {[%clk
00:00:29]} {[%emt 00:00:07]} 26. Nf3 {[%clk 00:00:59]} {[%emt 00:00:08]} Bf6
{[%clk 00:00:26]} {[%emt 00:00:05]} 27. Bxf6 {[%clk 00:00:51]} {[%emt
00:00:09]} exf6 {[%clk 00:00:27]} 28. c5 {[%clk 00:00:49]} {[%emt 00:00:04]}
Rd8 {[%clk 00:00:16]} {[%emt 00:00:13]} 29. Rxd6 {[%clk 00:00:48]} {[%emt
00:00:03]} Qe7 {[%clk 00:00:16]} {[%emt 00:00:02]} 30. Qc4 {[%clk 00:00:13]}
{[%emt 00:00:37]} Rxd6 {[%clk 00:00:17]} {[%emt 00:00:01]} 31. cxd6 {[%clk
00:00:14]} {[%emt 00:00:02]} Qxd6 {[%clk 00:00:18]} {[%emt 00:00:01]} 32. Qc5
{[%clk 00:00:09]} {[%emt 00:00:07]} Qd1 {[%clk 00:00:17]} {[%emt 00:00:02]} 33.
b5 {[%clk 00:00:09]} {[%emt 00:00:02]} Nd8 {[%clk 00:00:15]} {[%emt 00:00:05]}
34. Qc3 {[%clk 00:00:07]} {[%emt 00:00:03]} Ne6 {[%clk 00:00:14]} {[%emt
00:00:03]} 35. Rd2 {[%clk 00:00:08]} {[%emt 00:00:01]} Qb1 {[%clk 00:00:14]}
{[%emt 00:00:02]} 36. Qxf6 {[%clk 00:00:08]} {[%emt 00:00:03]} Qxe4 {[%clk
00:00:14]} {[%emt 00:00:02]} 37. Rd7 {[%clk 00:00:07]} {[%emt 00:00:03]} Rf8
{[%clk 00:00:12]} {[%emt 00:00:03]} 38. Kf2 {[%clk 00:00:07]} {[%emt 00:00:02]}
Qc2+ {[%clk 00:00:12]} {[%emt 00:00:03]} 39. Rd2 {[%clk 00:00:07]} {[%emt
00:00:01]} Qc5+ {[%clk 00:00:12]} {[%emt 00:00:02]} 40. Kg2 {[%clk 00:00:07]}
0-1

[Event "Blixt-SM 2021"]
[Site "Elite Hotel Marina Plaza, Kungstorget 6, Helsingborg, Sweden"]
[Date "2021.11.14"]
[Round "4.9"]
[White "Svensson, Mikael"]
[Black "Agovic, Seifo"]
[Result "1-0"]
[TimeControl "3 minutes + 2 seconds per move."]
[WhiteFideId "1716433"]
[BlackFideId "1702360"]
[WhiteElo "2073"]
[BlackElo "1910"]

1. d4 {[%clk 00:03:02]} {[%emt 00:00:01]} Nf6 {[%clk 00:03:03]} 2. Nf3 {[%clk
00:03:03]} d5 {[%clk 00:03:03]} {[%emt 00:00:03]} 3. Bg5 {[%clk 00:03:04]}
{[%emt 00:00:01]} h6 {[%clk 00:03:02]} {[%emt 00:00:04]} 4. Bxf6 {[%clk
00:03:04]} {[%emt 00:00:01]} exf6 {[%clk 00:03:03]} 5. e3 {[%clk 00:03:04]}
{[%emt 00:00:02]} Bd6 {[%clk 00:03:04]} {[%emt 00:00:01]} 6. c4 {[%clk
00:02:59]} {[%emt 00:00:07]} c6 {[%clk 00:03:05]} {[%emt 00:00:01]} 7. Nc3
{[%clk 00:02:59]} {[%emt 00:00:02]} Be6 {[%clk 00:03:04]} {[%emt 00:00:03]} 8.
Qb3 {[%clk 00:02:54]} {[%emt 00:00:08]} Qd7 {[%clk 00:02:55]} {[%emt 00:00:11]}
9. Be2 {[%clk 00:02:37]} {[%emt 00:00:18]} O-O {[%clk 00:02:55]} {[%emt
00:00:02]} 10. O-O {[%clk 00:02:38]} {[%emt 00:00:01]} a5 {[%clk 00:02:44]}
{[%emt 00:00:14]} 11. cxd5 {[%clk 00:02:32]} {[%emt 00:00:07]} cxd5 {[%clk
00:02:42]} {[%emt 00:00:04]} 12. Na4 {[%clk 00:02:29]} {[%emt 00:00:05]} Ra7
{[%clk 00:02:20]} {[%emt 00:00:24]} 13. Rac1 {[%clk 00:02:28]} {[%emt
00:00:03]} Nc6 {[%clk 00:02:20]} {[%emt 00:00:02]} 14. Nb6 {[%clk 00:02:19]}
{[%emt 00:00:11]} Qd8 {[%clk 00:02:16]} {[%emt 00:00:05]} 15. a3 {[%clk
00:02:14]} {[%emt 00:00:08]} Bc7 {[%clk 00:02:12]} {[%emt 00:00:06]} 16. Na4
{[%clk 00:02:11]} {[%emt 00:00:06]} Qd6 {[%clk 00:02:04]} {[%emt 00:00:09]} 17.
Nc3 {[%clk 00:01:55]} {[%emt 00:00:17]} g5 {[%clk 00:02:03]} {[%emt 00:00:03]}
18. Nb5 {[%clk 00:01:56]} Qd7 {[%clk 00:02:00]} {[%emt 00:00:05]} 19. Nxa7
{[%clk 00:01:54]} {[%emt 00:00:04]} Nxa7 {[%clk 00:02:01]} 20. Qc3 {[%clk
00:01:48]} {[%emt 00:00:08]} Rc8 {[%clk 00:02:01]} {[%emt 00:00:01]} 21. Qd2
{[%clk 00:01:41]} {[%emt 00:00:11]} Qd6 {[%clk 00:02:02]} {[%emt 00:00:01]} 22.
g3 {[%clk 00:01:38]} {[%emt 00:00:04]} h5 {[%clk 00:02:04]} 23. h4 {[%clk
00:01:35]} {[%emt 00:00:05]} Bh3 {[%clk 00:02:04]} {[%emt 00:00:02]} 24. Rfe1
{[%clk 00:01:36]} gxh4 {[%clk 00:02:05]} {[%emt 00:00:01]} 25. Nxh4 {[%clk
00:01:36]} {[%emt 00:00:02]} Nc6 {[%clk 00:01:42]} {[%emt 00:00:25]} 26. Bxh5
{[%clk 00:01:36]} {[%emt 00:00:03]} Re8 {[%clk 00:01:43]} 27. Kh2 {[%emt
00:00:28]} Bc8 28. Qd3 {[%clk 00:01:14]} {[%emt 00:00:01]} Re4 {[%clk
00:01:43]} 29. Kg2 {[%emt 00:00:20]} Rxh4 {[%clk 00:01:44]} 30. gxh4 {[%clk
00:00:59]} Qh2+ {[%clk 00:01:45]} {[%emt 00:00:01]} 31. Kf1 {[%clk 00:01:00]}
Bh3+ {[%clk 00:01:46]} {[%emt 00:00:02]} 32. Ke2 {[%clk 00:00:59]} {[%emt
00:00:03]} Bg3 {[%clk 00:01:46]} {[%emt 00:00:02]} 33. Rf1 {[%clk 00:00:39]}
{[%emt 00:00:22]} Bxf1+ {[%clk 00:01:46]} {[%emt 00:00:02]} 34. Rxf1 {[%clk
00:00:40]} Qxh4 {[%clk 00:01:47]} {[%emt 00:00:01]} 35. Bf3 {[%clk 00:00:34]}
{[%emt 00:00:08]} Bd6 {[%clk 00:01:46]} {[%emt 00:00:03]} 36. Rg1+ {[%clk
00:00:35]} {[%emt 00:00:01]} Kf8 {[%clk 00:01:47]} {[%emt 00:00:02]} 37. Bxd5
{[%clk 00:00:32]} {[%emt 00:00:05]} Qh2 {[%clk 00:01:39]} {[%emt 00:00:08]} 38.
Rh1 {[%clk 00:00:26]} {[%emt 00:00:09]} Ne5 {[%clk 00:01:29]} {[%emt 00:00:13]}
39. dxe5 {[%clk 00:00:15]} {[%emt 00:00:12]} Qxe5 {[%clk 00:01:30]} 40. Rh8+
{[%clk 00:00:12]} {[%emt 00:00:05]} Ke7 {[%clk 00:01:31]} 41. Qe4 {[%clk
00:00:13]} b5 {[%clk 00:01:31]} {[%emt 00:00:03]} 42. Qxe5+ {[%clk 00:00:14]}
{[%emt 00:00:01]} Bxe5 {[%clk 00:01:32]} 43. b3 {[%clk 00:00:15]} Kd6 {[%clk
00:01:33]} {[%emt 00:00:02]} 44. e4 {[%clk 00:00:15]} {[%emt 00:00:02]} a4
{[%clk 00:01:31]} {[%emt 00:00:04]} 45. bxa4 {[%clk 00:00:16]} bxa4 {[%clk
00:01:33]} 46. Ra8 {[%clk 00:00:16]} {[%emt 00:00:03]} Bb2 {[%clk 00:01:33]} 47.
Rxa4 {[%clk 00:00:16]} {[%emt 00:00:02]} Kc5 {[%clk 00:01:35]} 48. Ra8 {[%clk
00:00:16]} {[%emt 00:00:03]} Kb6 {[%clk 00:01:35]} {[%emt 00:00:02]} 49. a4
{[%clk 00:00:17]} Bc3 {[%clk 00:01:37]} 50. Kd3 {[%clk 00:00:18]} Bb4 {[%clk
00:01:38]} 51. Kc4 {[%clk 00:00:19]} Bc5 52. f4 {[%emt 00:00:02]} Be3 {[%clk
00:01:41]} 53. f5 {[%clk 00:00:22]} Bf2 {[%clk 00:01:41]} {[%emt 00:00:02]} 54.
a5+ {[%clk 00:00:23]} {[%emt 00:00:01]} Kc7 {[%clk 00:01:42]} 55. a6 {[%clk
00:00:25]} Kb6 {[%clk 00:01:43]} {[%emt 00:00:02]} 56. Bb7 {[%clk 00:00:23]}
{[%emt 00:00:04]} Kc7 {[%clk 00:01:44]} 57. Rf8 {[%clk 00:00:23]} {[%emt
00:00:02]} Ba7 {[%clk 00:01:42]} {[%emt 00:00:04]} 58. Rxf7+ {[%clk 00:00:24]}
{[%emt 00:00:01]} Kb8 {[%clk 00:01:43]} {[%emt 00:00:01]} 59. Bd5 {[%clk
00:00:24]} {[%emt 00:00:02]} Bd4 {[%clk 00:01:44]} 60. Kb5 {[%clk 00:00:25]}
Kc8 {[%clk 00:01:46]} {[%emt 00:00:01]} 61. Kc6 {[%clk 00:00:26]} Kd8 {[%clk
00:01:47]} 62. Kb7 {[%clk 00:00:26]} {[%emt 00:00:03]} Ke8 {[%clk 00:01:48]} 63.
a7 {[%clk 00:00:27]} {[%emt 00:00:01]} 1-0

[Event "Blixt-SM 2021"]
[Site "Elite Hotel Marina Plaza, Kungstorget 6, Helsingborg, Sweden"]
[Date "2021.11.14"]
[Round "6.7"]
[White "Neretljak, Nedzad"]
[Black "Agovic, Seifo"]
[Result "1/2-1/2"]
[TimeControl "3 minutes + 2 seconds per move."]
[WhiteFideId "1713132"]
[BlackFideId "1702360"]
[WhiteElo "2148"]
[BlackElo "1910"]

1. e4 {[%clk 00:03:03]} {[%emt 00:03:46]} c5 {[%clk 00:03:03]} {[%emt
00:00:04]} 2. Nf3 {[%clk 00:03:03]} {[%emt 00:00:01]} d6 {[%clk 00:03:04]}
{[%emt 00:00:01]} 3. d4 {[%clk 00:03:04]} {[%emt 00:00:02]} cxd4 {[%clk
00:03:05]} 4. Nxd4 {[%clk 00:03:05]} {[%emt 00:00:01]} Nf6 {[%clk 00:03:06]} 5.
Nc3 {[%clk 00:03:06]} a6 {[%clk 00:03:07]} 6. Bc4 {[%clk 00:03:00]} {[%emt
00:00:07]} e6 {[%clk 00:03:08]} {[%emt 00:00:01]} 7. Bb3 {[%clk 00:03:00]}
{[%emt 00:00:02]} b5 {[%clk 00:03:09]} {[%emt 00:00:02]} 8. f3 {[%clk
00:02:58]} {[%emt 00:00:03]} Bb7 {[%clk 00:03:09]} {[%emt 00:00:02]} 9. Be3
{[%clk 00:02:58]} {[%emt 00:00:02]} Be7 {[%clk 00:03:10]} {[%emt 00:00:01]} 10.
Qd2 {[%clk 00:02:58]} {[%emt 00:00:02]} O-O {[%clk 00:03:11]} {[%emt 00:00:02]}
1/2-1/2

[Event "Blixt-SM 2021"]
[Site "Elite Hotel Marina Plaza, Kungstorget 6, Helsingborg, Sweden"]
[Date "2021.11.14"]
[Round "8.5"]
[White "Nord, Alexander"]
[Black "Khalat, Havras"]
[Result "1-0"]
[TimeControl "3 minutes + 2 seconds per move."]
[WhiteFideId "1738135"]
[BlackFideId "1725017"]
[WhiteElo "1909"]
[BlackElo "1793"]

1. d4 {[%clk 00:03:02]} {[%emt 00:00:01]} Nf6 {[%clk 00:03:03]} {[%emt
00:00:01]} 2. Nf3 {[%clk 00:03:03]} e6 {[%clk 00:03:04]} {[%emt 00:00:02]} 3.
g3 {[%clk 00:03:04]} {[%emt 00:00:01]} d5 {[%clk 00:03:05]} 4. Bg2 {[%clk
00:03:05]} c6 {[%clk 00:03:06]} {[%emt 00:00:01]} 5. O-O {[%clk 00:03:05]}
{[%emt 00:00:02]} Bd6 {[%clk 00:03:07]} {[%emt 00:00:01]} 6. c4 {[%clk
00:03:06]} {[%emt 00:00:01]} O-O {[%clk 00:03:07]} {[%emt 00:00:02]} 7. Nbd2
{[%clk 00:03:02]} {[%emt 00:00:06]} Nbd7 {[%clk 00:03:07]} {[%emt 00:00:02]} 8.
Qc2 {[%clk 00:03:00]} {[%emt 00:00:03]} a6 {[%clk 00:03:07]} {[%emt 00:00:03]}
9. e4 {[%clk 00:02:55]} {[%emt 00:00:07]} dxe4 {[%clk 00:03:07]} {[%emt
00:00:02]} 10. Nxe4 {[%clk 00:02:56]} {[%emt 00:00:01]} Nxe4 {[%clk 00:03:07]}
{[%emt 00:00:02]} 11. Qxe4 {[%clk 00:02:57]} {[%emt 00:00:02]} Nf6 {[%clk
00:03:07]} {[%emt 00:00:01]} 12. Qe2 {[%clk 00:02:56]} {[%emt 00:00:02]} h6
{[%clk 00:03:00]} {[%emt 00:00:09]} 13. Rd1 {[%clk 00:02:53]} {[%emt 00:00:05]}
Qe7 {[%clk 00:02:57]} {[%emt 00:00:05]} 14. b3 {[%clk 00:02:39]} {[%emt
00:00:16]} Rb8 {[%clk 00:02:49]} {[%emt 00:00:10]} 15. Ne5 {[%clk 00:02:28]}
{[%emt 00:00:14]} Bxe5 {[%clk 00:02:21]} {[%emt 00:00:30]} 16. dxe5 {[%clk
00:02:28]} {[%emt 00:00:01]} Nd7 {[%clk 00:02:18]} {[%emt 00:00:05]} 17. Bf4
{[%clk 00:01:58]} {[%emt 00:00:32]} Rd8 {[%clk 00:01:57]} {[%emt 00:00:23]} 18.
h4 {[%clk 00:01:56]} {[%emt 00:00:04]} Nf8 {[%clk 00:01:46]} {[%emt 00:00:14]}
19. h5 {[%clk 00:01:28]} {[%emt 00:00:30]} Bd7 {[%clk 00:01:47]} {[%emt
00:00:02]} 20. Be4 {[%clk 00:01:10]} {[%emt 00:00:18]} Nh7 {[%clk 00:01:44]}
{[%emt 00:00:06]} 21. Kg2 {[%clk 00:00:44]} {[%emt 00:00:28]} Ng5 {[%clk
00:01:44]} {[%emt 00:00:01]} 22. Bc2 {[%clk 00:00:41]} {[%emt 00:00:05]} c5
{[%clk 00:01:38]} {[%emt 00:00:09]} 23. Bxg5 {[%clk 00:00:19]} {[%emt
00:00:23]} Qxg5 {[%clk 00:01:37]} {[%emt 00:00:03]} 24. Be4 {[%clk 00:00:19]}
{[%emt 00:00:02]} b5 {[%clk 00:01:26]} {[%emt 00:00:13]} 25. f4 {[%clk
00:00:12]} {[%emt 00:00:09]} Qe7 {[%clk 00:01:25]} {[%emt 00:00:03]} 26. Rac1
{[%clk 00:00:12]} {[%emt 00:00:02]} b4 {[%clk 00:01:22]} {[%emt 00:00:06]} 27.
Qf3 {[%clk 00:00:10]} {[%emt 00:00:04]} Be8 {[%clk 00:01:19]} {[%emt 00:00:05]}
28. Kf2 {[%clk 00:00:08]} {[%emt 00:00:04]} Rxd1 {[%clk 00:01:19]} {[%emt
00:00:02]} 29. Rxd1 {[%clk 00:00:09]} Rd8 {[%clk 00:01:20]} {[%emt 00:00:01]}
30. Qe2 {[%clk 00:00:05]} {[%emt 00:00:05]} a5 {[%clk 00:01:16]} {[%emt
00:00:06]} 31. Bc2 {[%clk 00:00:05]} {[%emt 00:00:03]} f5 {[%clk 00:01:09]}
{[%emt 00:00:09]} 32. exf6 {[%clk 00:00:05]} {[%emt 00:00:01]} Qxf6 {[%clk
00:01:09]} {[%emt 00:00:02]} 33. Rxd8 {[%clk 00:00:06]} {[%emt 00:00:01]} Qxd8
{[%clk 00:01:08]} {[%emt 00:00:03]} 34. Qxe6+ {[%clk 00:00:07]} Bf7 {[%clk
00:01:02]} {[%emt 00:00:07]} 35. Qe2 {[%clk 00:00:05]} {[%emt 00:00:05]} Qd4+
{[%clk 00:01:03]} 36. Kg2 {[%clk 00:00:05]} {[%emt 00:00:01]} Qf6 {[%clk
00:00:47]} {[%emt 00:00:18]} 37. Qe4 {[%clk 00:00:04]} {[%emt 00:00:03]} Bxh5
{[%clk 00:00:39]} {[%emt 00:00:10]} 38. Qa8+ {[%clk 00:00:04]} {[%emt
00:00:02]} Qf8 {[%clk 00:00:35]} {[%emt 00:00:06]} 39. Bh7+ {[%clk 00:00:05]}
{[%emt 00:00:01]} Kf7 {[%clk 00:00:34]} {[%emt 00:00:04]} 40. Qd5+ {[%clk
00:00:06]} Ke7 {[%clk 00:00:28]} {[%emt 00:00:09]} 41. Qxh5 {[%clk 00:00:07]}
{[%emt 00:00:01]} Qf6 {[%clk 00:00:23]} {[%emt 00:00:06]} 42. Qxc5+ {[%clk
00:00:07]} {[%emt 00:00:02]} Kd7 {[%clk 00:00:18]} {[%emt 00:00:06]} 43. Qd5+
{[%clk 00:00:08]} Kc8 {[%clk 00:00:12]} {[%emt 00:00:08]} 44. Bf5+ {[%clk
00:00:09]} Kb8 {[%clk 00:00:08]} {[%emt 00:00:05]} 45. Qe5+ {[%clk 00:00:11]}
1-0

[Event "Blixt-SM 2021"]
[Site "Elite Hotel Marina Plaza, Kungstorget 6, Helsingborg, Sweden"]
[Date "2021.11.14"]
[Round "10.4"]
[White "Abedinov, Adnan"]
[Black "Nilsson, Patrik"]
[Result "0-1"]
[TimeControl "3 minutes + 2 seconds per move."]
[WhiteFideId "1703544"]
[BlackFideId "1708171"]
[WhiteElo "2170"]
[BlackElo "2143"]

1. c4 {[%clk 00:03:02]} {[%emt 00:00:01]} f5 {[%clk 00:03:04]} {[%emt
00:00:01]} 2. Nc3 {[%clk 00:03:03]} Nf6 {[%clk 00:03:05]} 3. g3 {[%clk
00:03:04]} g6 {[%clk 00:03:06]} 4. Bg2 {[%clk 00:03:05]} {[%emt 00:00:02]} Bg7
{[%clk 00:03:07]} 5. d4 {[%clk 00:03:05]} {[%emt 00:00:01]} d6 {[%clk
00:03:08]} {[%emt 00:00:02]} 6. Nf3 {[%clk 00:03:04]} {[%emt 00:00:03]} O-O
{[%clk 00:03:09]} 7. O-O {[%clk 00:03:05]} Qe8 {[%clk 00:03:10]} {[%emt
00:00:03]} 8. d5 {[%clk 00:03:00]} {[%emt 00:00:07]} Na6 {[%clk 00:03:11]}
{[%emt 00:00:01]} 9. Be3 {[%clk 00:02:57]} {[%emt 00:00:05]} c6 {[%clk
00:02:51]} {[%emt 00:00:22]} 10. Nd4 {[%clk 00:02:37]} {[%emt 00:00:22]} Bd7
{[%clk 00:02:47]} {[%emt 00:00:07]} 11. h3 {[%clk 00:02:33]} {[%emt 00:00:06]}
Nc5 {[%clk 00:02:22]} {[%emt 00:00:28]} 12. Rc1 {[%clk 00:02:12]} {[%emt
00:00:22]} a5 {[%clk 00:02:14]} {[%emt 00:00:11]} 13. b3 {[%clk 00:01:58]}
{[%emt 00:00:16]} Nfe4 {[%clk 00:02:02]} {[%emt 00:00:13]} 14. Nxe4 {[%clk
00:01:52]} {[%emt 00:00:08]} Nxe4 {[%clk 00:02:03]} {[%emt 00:00:02]} 15. Qd3
{[%clk 00:01:32]} {[%emt 00:00:21]} Nc5 {[%clk 00:01:51]} {[%emt 00:00:14]} 16.
Qd2 {[%clk 00:01:30]} {[%emt 00:00:03]} Ne4 {[%clk 00:01:52]} {[%emt 00:00:02]}
17. Qd3 {[%clk 00:01:17]} {[%emt 00:00:15]} Nc5 {[%clk 00:01:49]} {[%emt
00:00:05]} 18. Qc2 {[%clk 00:01:17]} {[%emt 00:00:02]} Qf7 {[%clk 00:01:41]}
{[%emt 00:00:10]} 19. f4 {[%clk 00:01:14]} {[%emt 00:00:05]} Rfe8 {[%clk
00:01:27]} {[%emt 00:00:17]} 20. Kh2 {[%clk 00:01:14]} e5 {[%clk 00:01:24]}
{[%emt 00:00:05]} 21. dxe6 {[%clk 00:01:12]} {[%emt 00:00:04]} Nxe6 {[%clk
00:01:24]} {[%emt 00:00:02]} 22. Nf3 {[%clk 00:01:00]} {[%emt 00:00:14]} Rad8
{[%clk 00:01:15]} {[%emt 00:00:12]} 23. Bb6 {[%clk 00:01:00]} {[%emt 00:00:02]}
Ra8 {[%clk 00:01:15]} {[%emt 00:00:02]} 24. Rcd1 {[%clk 00:00:56]} {[%emt
00:00:06]} d5 {[%clk 00:01:07]} {[%emt 00:00:10]} 25. cxd5 {[%clk 00:00:41]}
{[%emt 00:00:17]} cxd5 {[%clk 00:01:08]} 26. Rxd5 {[%clk 00:00:41]} {[%emt
00:00:02]} Bc6 {[%clk 00:01:10]} 27. Rd2 {[%clk 00:00:36]} {[%emt 00:00:07]} a4
{[%clk 00:01:05]} {[%emt 00:00:08]} 28. b4 {[%clk 00:00:33]} {[%emt 00:00:04]}
h6 {[%clk 00:01:03]} {[%emt 00:00:04]} 29. Ne5 {[%clk 00:00:17]} {[%emt
00:00:18]} Bxe5 {[%clk 00:00:57]} {[%emt 00:00:08]} 30. fxe5 {[%clk 00:00:19]}
Bxg2 {[%clk 00:00:53]} {[%emt 00:00:07]} 31. Kxg2 {[%clk 00:00:20]} Ng5 {[%clk
00:00:45]} {[%emt 00:00:09]} 32. Bd4 {[%clk 00:00:13]} {[%emt 00:00:09]} Ne4
{[%clk 00:00:44]} {[%emt 00:00:04]} 33. Rd3 {[%clk 00:00:13]} {[%emt 00:00:01]}
Rac8 {[%clk 00:00:45]} {[%emt 00:00:01]} 34. Qb1 {[%clk 00:00:12]} {[%emt
00:00:03]} b5 {[%clk 00:00:35]} {[%emt 00:00:12]} 35. Rdd1 {[%clk 00:00:11]}
{[%emt 00:00:02]} Rc4 {[%clk 00:00:35]} {[%emt 00:00:03]} 36. e3 {[%clk
00:00:11]} {[%emt 00:00:02]} Rec8 {[%clk 00:00:36]} 37. Bc5 {[%clk 00:00:07]}
{[%emt 00:00:06]} Qb7 {[%clk 00:00:35]} {[%emt 00:00:03]} 38. Kh2 {[%clk
00:00:07]} {[%emt 00:00:02]} Nc3 {[%clk 00:00:34]} {[%emt 00:00:04]} 39. Qd3
{[%clk 00:00:05]} {[%emt 00:00:04]} Nxd1 {[%emt 00:00:06]} 40. Rxd1 Qf3 {[%clk
00:00:30]} {[%emt 00:00:01]} 41. Qd5+ {[%clk 00:00:07]} {[%emt 00:00:01]} Qxd5
{[%clk 00:00:30]} {[%emt 00:00:03]} 42. Rxd5 {[%clk 00:00:08]} Rc2+ {[%clk
00:00:30]} {[%emt 00:00:02]} 43. Kg1 {[%clk 00:00:10]} Rxa2 44. e6 {[%emt
00:00:02]} Rc2 {[%clk 00:00:24]} {[%emt 00:00:09]} 45. Rd7 {[%clk 00:00:12]}
{[%emt 00:00:01]} a3 {[%clk 00:00:21]} {[%emt 00:00:06]} 46. Bd4 {[%clk
00:00:12]} {[%emt 00:00:02]} R2c7 {[%clk 00:00:20]} {[%emt 00:00:03]} 47. Rd5
{[%clk 00:00:07]} {[%emt 00:00:06]} a2 {[%clk 00:00:19]} {[%emt 00:00:03]} 48.
Rxb5 {[%clk 00:00:05]} {[%emt 00:00:04]} Rc1+ {[%clk 00:00:19]} {[%emt
00:00:02]} 49. Kg2 {[%clk 00:00:07]} a1=Q {[%clk 00:00:19]} {[%emt 00:00:03]}
50. Bxa1 {[%clk 00:00:08]} {[%emt 00:00:01]} Rxa1 {[%clk 00:00:20]} 51. Rb7
{[%clk 00:00:08]} {[%emt 00:00:03]} Ra6 {[%clk 00:00:19]} {[%emt 00:00:02]} 52.
e7 {[%clk 00:00:08]} {[%emt 00:00:02]} Re8 {[%clk 00:00:20]} {[%emt 00:00:01]}
53. b5 {[%clk 00:00:09]} Ra2+ {[%clk 00:00:19]} {[%emt 00:00:03]} 54. Kf3
{[%clk 00:00:11]} Kf7 {[%clk 00:00:20]} 55. Rb6 {[%clk 00:00:11]} {[%emt
00:00:01]} Rxe7 {[%clk 00:00:21]} {[%emt 00:00:02]} 56. Rc6 {[%clk 00:00:12]}
Rb2 {[%clk 00:00:22]} 57. b6 {[%clk 00:00:14]} Rb7 {[%clk 00:00:22]} {[%emt
00:00:02]} 58. g4 {[%clk 00:00:15]} fxg4+ {[%clk 00:00:22]} {[%emt 00:00:03]}
59. hxg4 {[%clk 00:00:16]} R2xb6 {[%clk 00:00:23]} 60. Rc1 {[%clk 00:00:18]}
Rf6+ {[%clk 00:00:24]} {[%emt 00:00:02]} 61. Kg3 {[%clk 00:00:18]} Re7 {[%clk
00:00:25]} 62. Rc3 {[%clk 00:00:19]} {[%emt 00:00:01]} Rfe6 {[%clk 00:00:26]}
{[%emt 00:00:01]} 63. Kf3 Kf6 64. Kg3 {[%clk 00:00:19]} {[%emt 00:00:02]} Kg5
{[%clk 00:00:28]} {[%emt 00:00:02]} 65. Rc5+ {[%clk 00:00:21]} Re5 {[%clk
00:00:29]} {[%emt 00:00:01]} 0-1